[Event "Reykjavik Open 2024"]
[Site "Reykjavik"]
[Date "2024.03.18"]
[Round "6.38"]
[White "Garifullina, Leya"]
[Black "Botez, Alexandra"]
[Result "1-0"]
[ECO "C12"]
[WhiteElo "2413"]
[BlackElo "1986"]
[Annotator "TA"]
[PlyCount "71"]
[EventDate "2024.03.12"]
[EventCountry "ISL"]
[SourceTitle "playchess.com"]
[Source "ChessBase"]
[SourceQuality "1"]
[TimeControl "40/5400+30:1800+30"]

{[%evp 11,71,-16,-16,-15,-6,-22,0,0,2,12,39,23,29,30,60,-7,21,0,51,50,79,12,154,155,170,168,156,41,46,39,19,18,48,24,128,120,127,125,127,121,127,110,502,499,410,238,866,874,874,877,841,862,817,797,887,866,29967,29972,29988,29989,29989,29990]} 1. e4 {[%emt 0:05:35][%cal Be2e4,Be4e5][%mdl 32]} e6 {[%emt 0:15:28]} 2. d4 {[%emt 0:00:08]} d5 {[%emt 0:00:05]} 3. Nc3 {[%emt 0:00:04]} Nf6 {[%emt 0:00:08]} 4. Bg5 {[%emt 0:00:07]} Bb4 {[%emt 0:00:06]} 5. e5 {[%emt 0:00:05]} h6 {[%emt 0:00:06]} 6. Bc1 {[%emt 0:00:03]} Ne4 {[%emt 0:02:12]} 7. Qg4 {[%emt 0:00:15]} Kf8 {[%emt 0:01:02][%cal Oc7c5] aiming for ...c5!} (7... Bxc3+ 8. bxc3 Kf8 9. Ne2 $16) (7... Nxc3 $6 8. Qxg7 Nxa2+ 9. c3 Nxc1 10. cxb4 $16 (10. Qxh8+ Kd7 $18)) 8. Nge2 {[%emt 0:00:07]} c5 {[%emt 0:02:47]} 9. a3 {[%emt 0:00:55] The position is equal.} Ba5 {[%emt 0:00:52]} 10. dxc5 {[%emt 0:01:24]} Nxc3 {[%emt 0:00:32]} 11. Nxc3 {[%emt 0:01:27]} Bxc3+ {[%emt 0:00:08]} 12. bxc3 {[%emt 0:00:04]} Nd7 {[%emt 0:00:25] Black is weak on the dark squares} 13. f4 {[%emt 0:09:07]} (13. Qd4 $14) 13... Qa5 {[%emt 0:02:08]} 14. Bd2 {[%emt 0:02:57]} Qa4 {[%emt 0:03:20] [#]} ({Black should try} 14... Qc7 $11) 15. c4 $1 $40 {[%emt 0:07:36][%mdl 128] Black needs to defend precisely.} Qxc2 {[%emt 0:01:25]} (15... Nxc5 16. Bb4) 16. cxd5 {[%emt 0:04:39]} (16. Rd1 $16) 16... Qe4+ {[%emt 0:00:24] [#]} (16... Nxc5 $11 {keeps the balance.} 17. Qe2 Qb2 (17... exd5 $2 18. Rc1 $18)) 17. Qe2 $1 $16 {[%emt 0:02:41]} Qxd5 {[%emt 0:02:16][%cal Of8g8]} 18. Be3 {[%emt 0:00:53]} Qc6 {[%emt 0:34:52]} 19. Qf2 {[%emt 0:05:00]} (19. Rd1 $16) 19... b6 $1 $14 {[%emt 0:05:59][%cal Rd7c5]} 20. Be2 {[%emt 0:03:55]} Nxc5 {[%emt 0:04:01] Threatens to win with ...Ne4.} (20... Bb7 21. Bf3 Qc7 22. c6 Bxc6 23. Rc1 $18) 21. Rc1 {[%emt 0:00:32][%cal Re3c5]} Bb7 {[%emt 0:00:58]} 22. O-O {[%emt 0:00:59][%cal Of4f5] Black must now prevent f5!} Rc8 {[%emt 0:08:51]} (22... g6 $1 $11) 23. f5 $16 {[%emt 0:03:17]} exf5 {[%emt 0:00:44]} 24. Bf3 {[%emt 0:00:06] This pair of bishops is nice.} Qc7 {[%emt 0:00:12]} 25. Bxb7 {[%emt 0:00:05]} Qxb7 {[%emt 0:00:18]} 26. Qxf5 {[%emt 0:00:06]} Re8 $2 {[%emt 0:06:13][%mdl 8192] This move loses the game for Black.} (26... Kg8 $16 {is a better chance.}) 27. Bxc5+ $18 {[%emt 0:01:03]} bxc5 {[%emt 0:00:03]} 28. Rcd1 {[%emt 0:00:46] Against Qd5} (28. Rxc5 Kg8 $14) (28. e6 $142 {[%cal Re6f7]} f6 (28... Rxe6 $2 29. Qxe6 Kg8 30. Qf5 $18) 29. Rfe1 (29. Rxc5 Kg8 $18) (29. Qxc5+ Qe7 $14)) 28... g6 $2 {[%emt 0:01:41]} (28... Kg8 29. Rd7 Qb3 30. Qxf7+ Qxf7 31. Rfxf7 Rh7 32. Rxa7 h5) 29. Qxg6 {[%emt 0:01:31] White threatens e6 and mate.} Rg8 {[%emt 0:05:05]} 30. Qxh6+ {[%emt 0:00:15]} Rg7 {[%emt 0:00:12]} 31. Qh8+ {[%emt 0:00:05]} Rg8 {[%emt 0:00:07] [#]} 32. Qh3 $1 {[%emt 0:00:05]} (32. Qh6+ Rg7 33. Qh8+ Rg8 $18) 32... c4 {[%emt 0:01:23]} 33. Rd6 {[%emt 0:03:42] White wants to mate with Qh6+.} (33. Qh6+ Rg7 34. Qh8+ (34. Rf2 Kg8 $16) 34... Rg8 $18) 33... Rxe5 {[%emt 0:00:52]} 34. Rd8+ {[%emt 0:00:07] White mates.} Re8 {[%emt 0:00:13]} 35. Qh6+ {[%emt 0:00:12]} Rg7 {[%emt 0:00:53]} 36. Qh8+ {[%emt 0:00:07] Weighted Error Value: White=0.26 (precise) /Black=0.72.  Loses game:     	---       	Black=1      Mistake:       	White=4     	Black=4      Inaccurate:     	---       	Black=4      OK:         	White=9     	Black=3      Best:        	White=2     	Black=3      Strong:       	---       	Black=1} 1-0

[Event "Reykjavik Open 2024"]
[Site "Reykjavik"]
[Date "2024.03.18"]
[Round "6.39"]
[White "Botez, Andrea"]
[Black "Bisby, Daniel L"]
[Result "1/2-1/2"]
[ECO "D00"]
[WhiteElo "1825"]
[BlackElo "2273"]
[Annotator "TA"]
[PlyCount "138"]
[EventDate "2024.03.12"]
[EventCountry "ISL"]
[SourceTitle "playchess.com"]
[Source "ChessBase"]
[SourceQuality "1"]
[TimeControl "40/5400+30:1800+30"]

{[%evp 9,138,-2,12,29,15,35,48,0,15,-13,-23,-18,-22,-26,-30,-27,-36,-29,0,0,0,0,0,-5,-6,-8,-10,-9,-8,-4,-6,-6,0,0,-3,-38,-35,-58,-58,-71,-69,-62,-70,-50,-62,-73,-78,-130,-89,-134,-79,-140,-139,-215,-208,-272,-188,-144,-81,-83,-83,-173,-173,-325,-314,-275,-304,-255,-210,-202,-136,-140,-140,-118,-110,-134,-83,-147,-139,-139,-138,-147,-139,-139,-139,-118,-73,-139,-139,-139,-118,-147,-139,-139,-139,-139,-139,-139,-139,-133,-132,-175,-167,-170,-170,-168,-167,-157,-161,-250,-250,-247,-218,-200,-176,-168,-139,-121,-106,-161,-107,-107,-106,-99,0,0,0,0,0,-4,0]} 1. d4 {[%emt 0:12:14]} Nf6 {[%emt 0:00:13]} 2. Nc3 {[%emt 0:00:15]} d5 {[%emt 0:01:27]} 3. Bf4 {[%emt 0:00:16]} g6 {[%emt 0:00:57]} 4. e3 {[%emt 0:01:49]} Bg7 {[%emt 0:00:50]} 5. h4 {[%emt 0:00:26]} O-O {[%emt 0:08:54][%cal Oc7c5] [#]} 6. h5 $1 {[%emt 0:11:49]} c5 {[%emt 0:02:50]} 7. hxg6 {[%emt 0:02:34]} hxg6 {[%emt 0:03:12]} 8. dxc5 {[%emt 0:04:02]} (8. Qd2 $14) 8... Nc6 {[%emt 0:02:56][%cal Bb8c6,Bc6b4,Bb4c2][%mdl 32]} 9. Nf3 {[%emt 0:00:42]} Qa5 {[%emt 0:02:37][%cal Of6e4]} 10. Qd2 {[%emt 0:00:56]} Qxc5 {[%emt 0:03:43]} 11. Na4 {[%emt 0:28:03]} Qb4 {[%emt 0:01:54]} 12. Qxb4 {[%emt 0:00:25]} Nxb4 {[%emt 0:00:07]} 13. Bd3 {[%emt 0:02:42]} Bf5 {[%emt 0:07:11]} 14. Bxf5 {[%emt 0:02:21]} gxf5 {[%emt 0:00:07]} 15. Nd4 {[%emt 0:00:30]} Rfc8 {[%emt 0:13:33]} 16. Nxf5 {[%emt 0:12:47]} Nxc2+ {[%emt 0:05:43]} 17. Ke2 $132 {[%emt 0:00:07][%mdl 2048] White puts up resistance} Nxa1 {[%emt 0:00:12]} 18. Nxe7+ {[%emt 0:00:11]} Kf8 {[%emt 0:00:08]} 19. Nxc8 {[%emt 0:00:24]} Rxc8 {[%emt 0:01:11]} 20. Rxa1 {[%emt 0:01:55]} Ne4 {[%emt 0:00:35]} 21. Nc3 {[%emt 0:04:11]} Bxc3 {[%emt 0:01:54]} 22. bxc3 {[%emt 0:00:07]} (22. Rc1 $5) 22... Rxc3 $11 {[%emt 0:00:30][%mdl 4096] Endgame. KRB-KRN} 23. Rb1 {[%emt 0:08:43][%cal Of2f3]} Rc2+ {[%emt 0:02:44]} 24. Kd1 {[%emt 0:03:10]} Rxa2 {[%emt 0:03:26]} 25. Bh6+ {[%emt 0:01:22]} Ke8 {[%emt 0:02:37]} 26. Rxb7 {[%emt 0:00:06]} Nxf2+ {[%emt 0:00:19]} 27. Ke1 {[%emt 0:00:15]} Ne4 {[%emt 0:00:54]} 28. Kf1 {[%emt 0:01:00]} (28. Kd1 $142) 28... a5 {[%emt 0:04:31]} 29. Ra7 {[%emt 0:00:20]} a4 {[%emt 0:03:04]} (29... Ra1+ $142 30. Ke2 Ra2+ 31. Kf3 a4) 30. Bg7 {[%emt 0:00:21]} (30. Kg1 $142) 30... f6 $1 $17 {[%emt 0:02:13]} 31. Ra8+ {[%emt 0:00:50]} (31. Kg1 $17) 31... Kf7 {[%emt 0:00:20]} 32. Ra7+ {[%emt 0:00:37]} Ke6 {[%emt 0:01:38]} 33. g4 {[%emt 0:00:38]} Rf2+ {[%emt 0:13:50]} ({Better is} 33... Kd6 {aiming for ...Kc5.} 34. Ra5 Nd2+ 35. Ke1 Nc4 36. Ra6+ Kc5 37. Rxf6 Nxe3) 34. Kg1 {[%emt 0:00:36][%cal Og7f8]} Rf3 {[%emt 0:00:48]} 35. Rxa4 {[%emt 0:00:29]} (35. Bf8 $17 {is a better defense.} Rg3+ (35... Rxe3 $2 {is the wrong capture.} 36. Re7+ Kd6 37. Rxe4+ Kc6 38. Rxe3 $18) 36. Kh2 Rxg4 37. Rxa4) 35... Rxe3 $19 {[%emt 0:00:15] Hoping for ...Rg3+.} 36. Ra6+ $2 {[%emt 0:00:24]} (36. Kh2 {was called for.}) 36... Kf7 {[%emt 0:02:20]} 37. Bh6 {[%emt 0:00:35]} Rg3+ {[%emt 0:00:17]} 38. Kf1 {[%emt 0:00:02]} Rxg4 {[%emt 0:00:31] ...d4 is the strong threat.} ({Weaker is} 38... Kg6 39. Bc1 $15) 39. Ke2 {[%emt 0:00:31]} Kg6 {[%emt 0:03:26]} 40. Be3 {[%emt 0:00:22]} Ng3+ {[%emt 0:04:04]} 41. Kd3 {[%emt 0:30:39]} Nf5 $1 {[%emt 0:30:47] Dodges Bd4} 42. Bf2 {[%emt 0:00:00] Prevents Rg3+.} Kf7 {[%emt 0:00:00]} ({Black should try} 42... Rf4 43. Ba7 Rf3+ 44. Kd2 Rb3) 43. Bc5 {[%emt 0:00:00]} (43. Ra7+ $142 Ke6 44. Ra6+ Ke5 45. Bb6) 43... Rg3+ $17 {[%emt 0:00:00]} 44. Kd2 {[%emt 0:00:00]} Rh3 {[%emt 0:00:00]} 45. Rb6 {[%emt 0:00:00]} Ng3 {[%emt 0:00:00] White must now prevent ...Ne4+.} 46. Bd4 {[%emt 0:00:00]} Ne4+ {[%emt 0:00:00]} 47. Ke2 {[%emt 0:00:00]} Ra3 {[%emt 0:00:00]} 48. Rc6 {[%emt 0:00:00]} (48. Rb7+ $142 Ke6 49. Rb6+ Ke7 50. Rb7+ Kd6 51. Rb6+ Kc7 52. Re6) 48... Kg6 {[%emt 0:00:00]} 49. Rb6 {[%emt 0:00:00]} Ra5 {[%emt 0:00:00] Dodges Rb5} 50. Kd3 {[%emt 0:00:00]} Kf5 {[%emt 0:00:00]} 51. Ke2 {[%emt 0:00:00]} Ra2+ {[%emt 0:00:00]} 52. Ke3 {[%emt 0:00:00]} Ra3+ {[%emt 0:00:00]} 53. Ke2 {[%emt 0:00:00]} Ra8 {[%emt 0:00:00]} 54. Kd3 {[%emt 0:01:27]} Rd8 {[%emt 0:00:00]} 55. Be3 {[%emt 0:00:23]} Rd6 {[%emt 0:03:04]} 56. Rb1 {[%emt 0:00:25]} Ke6 {[%emt 0:00:30]} 57. Bd4 {[%emt 0:03:58]} Ra6 {[%emt 0:00:29]} 58. Ke3 {[%emt 0:00:49] [#]} Nd6 $1 {[%emt 0:01:35] Strongly threatening ...Nf5+.} 59. Bc5 {[%emt 0:01:52]} (59. Re1 $142) 59... Rc6 {[%emt 0:00:32]} 60. Ba7 {[%emt 0:00:46]} Rc7 {[%emt 0:02:06]} 61. Ra1 {[%emt 0:00:22]} Nf5+ {[%emt 0:02:28]} 62. Kd3 {[%emt 0:00:20]} Rb7 {[%emt 0:00:43] Repels Bb6} 63. Ra6+ {[%emt 0:00:23]} Ke5 {[%emt 0:00:34]} 64. Ra3 {[%emt 0:00:31]} (64. Bb6 $17) 64... Nd6 {[%emt 0:00:58]} (64... Rb4 $19 65. Kc3 Rc4+ 66. Kd2 Nd4 67. Re3+ Kf4 68. Bb8+ Kf5) 65. Bd4+ {[%emt 0:00:24]} Ke6 {[%emt 0:00:06]} 66. Ra6 {[%emt 0:00:26] [#]} f5 {[%emt 0:00:44]} ({Black should play} 66... Rd7 $1 $17 67. Bb2 Kf5) 67. Bc5 $11 {[%emt 0:00:27] The position is equal.} Rd7 {[%emt 0:00:08]} 68. Ke3 {[%emt 0:00:31]} Rd8 {[%emt 0:00:24]} 69. Kf4 {[%emt 0:00:16]} Rd7 {[%emt 0:00:48] Weighted Error Value: White=0.20 (precise) /Black=0.11 (very precise) .  Mistake:       	White=10    	Black=5      Inaccurate:     	White=5     	Black=5      OK:         	White=22    	Black=25     Best:        	White=6     	Black=4      Strong:       	---       	Black=1} 1/2-1/2

[Event "Reykjavik Open 2024"]
[Site "Reykjavik"]
[Date "2024.03.18"]
[Round "6.40"]
[White "Kistrup, Nicolai"]
[Black "Saine, Zachary"]
[Result "1-0"]
[ECO "D30"]
[WhiteElo "2324"]
[BlackElo "2010"]
[Annotator "TA"]
[PlyCount "45"]
[EventDate "2024.03.12"]
[EventCountry "ISL"]
[SourceTitle "playchess.com"]
[Source "ChessBase"]
[SourceQuality "1"]
[TimeControl "40/5400+30:1800+30"]

{[%evp 9,45,-5,7,0,4,0,0,0,2,0,0,0,54,0,79,69,62,0,12,10,32,4,10,13,434,437,468,465,510,500,477,474,1047,1050,1058,1058,991,893]} 1. d4 {[%emt 0:00:02]} d5 {[%emt 0:00:12]} 2. c4 {[%emt 0:00:04]} e6 {[%emt 0:00:04]} 3. Nf3 {[%emt 0:00:05]} c6 {[%emt 0:00:14]} 4. g3 {[%emt 0:00:07]} dxc4 {[%emt 0:00:05]} 5. Bg2 {[%emt 0:00:04]} b5 {[%emt 0:00:05]} 6. Ne5 {[%emt 0:00:45]} Bb7 {[%emt 0:00:09]} 7. a4 {[%emt 0:00:30] axb5 is the strong threat.} a6 {[%emt 0:00:21]} 8. O-O {[%emt 0:00:34] The position is equal.} Nf6 {[%emt 0:00:05]} 9. b3 {[%emt 0:00:30]} cxb3 {[%emt 0:00:28]} 10. Qxb3 {[%emt 0:00:08]} Qc8 {[%emt 0:01:24]} (10... Qxd4 $11 11. Bb2 Qb4) 11. axb5 {[%emt 0:12:24]} (11. Ba3 $14) 11... axb5 {[%emt 0:00:16]} (11... cxb5 $11 {remains equal.} 12. Qc3 Qxc3 13. Nxc3 Nd5) 12. Rxa8 $16 {[%emt 0:00:11]} Bxa8 {[%emt 0:00:04]} 13. Qa2 {[%emt 0:00:15] White has more active pieces.} ({Better is} 13. Nd3 $14) 13... Bb7 {[%emt 0:00:04]} 14. Qa7 {[%emt 0:00:21]} Be7 {[%emt 0:00:16]} 15. Nd2 {[%emt 0:03:52]} (15. Nc3 $5) 15... Nfd7 {[%emt 0:03:01]} 16. Ba3 {[%emt 0:11:08]} Na6 $2 {[%emt 0:29:49][%mdl 8192] Loses the game.} (16... Bxa3 $11 17. Nxd7 Bb4) 17. Bxe7 $18 {[%emt 0:05:12] White is clearly winning.} Kxe7 {[%emt 0:00:04] [#]} 18. Bxc6 $1 {[%emt 0:14:00][%mdl 512]} Bxc6 {[%emt 0:07:53]} (18... Nac5 19. Bxb7) 19. Rc1 {[%emt 0:00:32]} Nab8 {[%emt 0:11:22] [#]} 20. Qa3+ $1 {[%emt 0:00:42]} ({Not} 20. d5 exd5 21. Ndf3 f6 22. Qa3+ Ke8 23. Nxc6 Nxc6 $16) 20... Kf6 {[%emt 0:00:46] [#]} (20... Ke8 $142) 21. Rxc6 $1 {[%emt 0:01:00][%mdl 512]} Qxc6 {[%emt 0:08:20]} 22. Nxc6 {[%emt 0:00:20]} Nxc6 {[%emt 0:00:04]} 23. Qf3+ {[%emt 0:00:32] Weighted Error Value: White=0.11 (very precise) /Black=0.56.  Loses game:     	---       	Black=1      Mistake:       	White=2     	Black=3      Inaccurate:     	White=1     	---        OK:         	White=4     	Black=6      Best:        	White=3     	---        Strong:       	White=1     	---        Brilliant:      	White=2     	---} 1-0

[Event "Reykjavik Open 2024"]
[Site "Reykjavik"]
[Date "2024.03.18"]
[Round "6.41"]
[White "Chasin, Nico"]
[Black "Dietzsch, Herbert"]
[Result "1-0"]
[ECO "B30"]
[WhiteElo "2447"]
[BlackElo "1998"]
[Annotator "TA"]
[PlyCount "59"]
[EventDate "2024.03.12"]
[EventCountry "ISL"]
[SourceTitle "playchess.com"]
[Source "ChessBase"]
[SourceQuality "1"]
[TimeControl "40/5400+30:1800+30"]

{[%evp 9,59,41,58,43,39,36,44,39,68,66,64,70,62,73,65,64,62,37,27,40,27,35,93,85,99,122,147,87,339,212,208,209,196,204,204,206,195,207,296,295,367,356,367,363,474,245,513,453,447,446,544,533]} 1. e4 {[%emt 0:07:14]} c5 {[%emt 0:00:08]} 2. Nf3 {[%emt 0:00:12]} Nc6 {[%emt 0:00:08]} 3. Bb5 {[%emt 0:00:10]} Qb6 {[%emt 0:00:05]} 4. Ba4 {[%emt 0:01:24]} e6 {[%emt 0:01:44]} 5. O-O {[%emt 0:00:08]} d6 {[%emt 0:03:04]} 6. d4 {[%emt 0:01:21]} cxd4 {[%emt 0:00:11]} 7. Qxd4 {[%emt 0:01:00]} Qxd4 {[%emt 0:11:09]} 8. Nxd4 {[%emt 0:00:08][%cal Od4b5] White is slightly better.} Bd7 {[%emt 0:00:16]} 9. Nb5 {[%emt 0:03:21]} Rc8 {[%emt 0:01:55] Dodges Nc7+} 10. Rd1 {[%emt 0:01:37][%cal Ob1c3] White is more active.} Nb4 $1 {[%emt 0:16:37] ...a6 is the strong threat.} 11. N1c3 {[%emt 0:05:42]} (11. Nxa7 $2 Ra8 12. Bb3 (12. Bxd7+ $2 Kxd7 13. c3 Nc2 $19) 12... Rxa7 $19) 11... a6 {[%emt 0:02:56]} 12. Nxd6+ {[%emt 0:00:10]} Bxd6 {[%emt 0:00:08]} 13. Bxd7+ {[%emt 0:00:05]} (13. Rxd6 {simplifies} Bxa4 14. Nxa4 Nxc2 15. Rb1) 13... Kxd7 {[%emt 0:00:07]} 14. e5 {[%emt 0:00:31] Threatens to win with Ne4.} Nxc2 {[%emt 0:00:35]} 15. Rb1 {[%emt 0:05:53]} Rc4 {[%emt 0:22:04] Inhibits Ne4.} 16. Rxd6+ $16 {[%emt 0:00:44]} Kc7 {[%emt 0:00:24]} 17. Bg5 {[%emt 0:00:51] Repels Ne7} f6 {[%emt 0:00:55]} 18. Rc1 {[%emt 0:01:25]} ({White should play} 18. Bd2) 18... Nd4 $2 {[%emt 0:02:21][%mdl 8192] [#] Black cannot hold the game after this.} (18... fxg5 $16 {might work better.} 19. Rxe6 (19. Rxc2 Nh6 $18) 19... Kd7 (19... Nb4 $2 20. Nd5+ Nxd5 21. Rxc4+ Kd8 22. Rd6+ Ke8 23. Rc8+ Kf7 24. e6+ Kf6 25. Rxd5 $18) 20. Rd6+ Kc8) 19. Rxd4 $1 {[%emt 0:02:01][%mdl 512]} Rxd4 {[%emt 0:00:10]} 20. Nb5+ {[%emt 0:00:07]} Kd7 {[%emt 0:02:23]} 21. Nxd4 {[%emt 0:00:38]} fxg5 $18 {[%emt 0:00:09][%mdl 4096] Endgame. [#] KRN-KRN} 22. Nb3 $1 {[%emt 0:00:29]} b6 {[%emt 0:03:34]} 23. Rd1+ {[%emt 0:00:41]} Kc7 {[%emt 0:00:09]} (23... Ke7 $142) 24. Nd4 {[%emt 0:00:04]} Kd7 {[%emt 0:01:42]} 25. Nf5+ {[%emt 0:01:39]} Ke8 {[%emt 0:03:05] [#]} 26. Nd6+ {[%emt 0:00:02]} (26. Nxg7+ Kf7 $18) 26... Ke7 {[%emt 0:02:18]} 27. Nc8+ {[%emt 0:00:02]} (27. Rc1 $142 {Black must now prevent Rc7+.} Nf6 28. Nc8+ (28. exf6+ Kxd6 29. fxg7 Rg8 $11) 28... Kf7 29. exf6) 27... Kf7 $2 {[%emt 0:00:30]} (27... Ke8 {is a better defense.} 28. Nd6+ (28. Nxb6 Ne7 $18) 28... Kf8) 28. Rd7+ {[%emt 0:00:04] White is clearly winning.} Kg6 {[%emt 0:00:18]} 29. Rd8 {[%emt 0:00:04]} ({Less strong is} 29. Nxb6 Nh6 30. Re7 Rd8 $18) 29... Kf5 {[%emt 0:02:45]} 30. Nd6+ {[%emt 0:00:02] Weighted Error Value: White=0.29 (precise) /Black=0.57.  Loses game:     	---       	Black=1      Mistake:       	White=2     	Black=3      Inaccurate:     	White=1     	Black=2      OK:         	White=9     	Black=4      Best:        	White=4     	Black=1      Strong:       	White=1     	Black=1} 1-0

[Event "Reykjavik Open 2024"]
[Site "Reykjavik"]
[Date "2024.03.18"]
[Round "6.42"]
[White "Prado, Alexandra"]
[Black "Schilling, Patrick T"]
[Result "1-0"]
[ECO "B23"]
[WhiteElo "1877"]
[BlackElo "1633"]
[Annotator "NA RC"]
[PlyCount "96"]
[EventDate "2024.03.12"]
[EventCountry "ISL"]
[SourceTitle "playchess.com"]
[Source "ChessBase"]
[SourceQuality "1"]
[TimeControl "40/5400+30:1800+30"]

1. e4 {[%emt 0:08:22]} c5 {[%emt 0:00:07]} 2. Nc3 {[%emt 0:00:16]} Nc6 {[%emt 0:00:09]} 3. f4 {[%emt 0:00:54]} g6 {[%emt 0:00:12]} 4. Nf3 {[%emt 0:00:06]} Bg7 {[%emt 0:00:07]} 5. Bc4 {[%emt 0:00:06]} e6 {[%emt 0:00:14]} 6. f5 {[%emt 0:03:00]} exf5 {[%emt 0:00:10]} 7. exf5 {[%emt 0:00:14]} Nge7 {[%emt 0:00:11]} 8. fxg6 {[%emt 0:04:07]} hxg6 {[%emt 0:03:09]} 9. d3 {[%emt 0:01:05]} d5 {[%emt 0:00:47]} 10. Bb3 {[%emt 0:01:33]} O-O {[%emt 0:01:52]} 11. O-O {[%emt 0:00:21]} Nd4 {[%emt 0:00:14]} 12. h3 {[%emt 0:05:25]} Re8 {[%emt 0:07:23]} 13. Bg5 {[%emt 0:01:17]} Be6 {[%emt 0:00:41]} 14. Re1 {[%emt 0:11:07]} Qd6 {[%emt 0:03:50]} 15. Nxd4 {[%emt 0:10:16]} cxd4 {[%emt 0:00:17]} 16. Bxe7 {[%emt 0:07:36]} Rxe7 {[%emt 0:01:26]} 17. Nxd5 {[%emt 0:01:58]} Bxd5 {[%emt 0:00:36]} 18. Rxe7 {[%emt 0:02:58]} Bxb3 {[%emt 0:00:10]} 19. Qe2 {[%emt 0:12:58]} Bd5 {[%emt 0:01:54]} 20. Re1 {[%emt 0:01:44]} Bc6 {[%emt 0:02:04]} 21. Rf1 {[%emt 0:00:33]} Rf8 {[%emt 0:01:01]} 22. Qe1 {[%emt 0:03:31]} Qd5 {[%emt 0:02:28]} 23. Qe2 {[%emt 0:02:21]} Qxa2 {[%emt 0:03:37]} 24. b3 {[%emt 0:00:34]} Qa5 {[%emt 0:01:38]} 25. h4 {[%emt 0:03:16]} Qd5 {[%emt 0:00:50]} 26. b4 {[%emt 0:00:47]} a6 {[%emt 0:00:41]} 27. Qg4 {[%emt 0:01:04]} Qd6 {[%emt 0:04:13]} 28. Rfe1 {[%emt 0:00:48]} Qxb4 {[%emt 0:07:06]} 29. h5 {[%emt 0:01:26]} Qd6 {[%emt 0:02:39]} 30. hxg6 {[%emt 0:00:34]} Qxg6 {[%emt 0:00:15]} 31. Qh3 {[%emt 0:04:26]} Bh6 {[%emt 0:02:35]} 32. R7e5 {[%emt 0:02:09]} Be3+ {[%emt 0:04:57]} 33. Kh1 {[%emt 0:00:28]} Re8 {[%emt 0:03:52]} 34. Rh5 {[%emt 0:01:22]} Kg7 {[%emt 0:02:43]} 35. Rf1 {[%emt 0:01:39]} Qxh5 {[%emt 0:00:49]} 36. Qxh5 {[%emt 0:00:31]} Rh8 {[%emt 0:00:46]} 37. Rxf7+ {[%emt 0:00:17]} Kg8 {[%emt 0:00:34]} 38. Rf8+ {[%emt 0:00:09]} Kxf8 {[%emt 0:00:10]} 39. Qxh8+ {[%emt 0:00:06]} Kf7 {[%emt 0:00:18]} 40. Kh2 {[%emt 0:00:29]} a5 {[%emt 0:00:20]} 41. Qh5+ {[%emt 0:31:42]} Kf6 {[%emt 0:30:29]} 42. Qxa5 {[%emt 0:00:17]} Bf4+ {[%emt 0:02:03]} 43. Kg1 {[%emt 0:04:30]} Be5 {[%emt 0:00:20]} 44. g4 {[%emt 0:00:00]} Ke6 {[%emt 0:00:00]} 45. Kf2 {[%emt 0:00:00]} Kd6 {[%emt 0:00:00]} 46. Qb4+ {[%emt 0:00:00]} Ke6 {[%emt 0:00:00]} 47. Qc5 {[%emt 0:00:00]} Bd5 {[%emt 0:00:00]} 48. Qc8+ {[%emt 0:00:00]} Kf6 {[%emt 0:00:00]} 1-0